[Event "2nd Bundesliga Nord 2023-24"]
[Site "Hamburg"]
[Date "2024.02.04"]
[Round "6.1"]
[White "Lubbe, Nikolas"]
[Black "Feuerstack, Aljoscha"]
[Result "1-0"]
[ECO "D30"]
[WhiteElo "2500"]
[BlackElo "2467"]
[Annotator "RC"]
[PlyCount "81"]
[EventDate "2023.11.30"]
[EventType "team-tourn"]
[EventCountry "GER"]
[SourceTitle "playchess.com"]
[Source "ChessBase"]
[SourceQuality "1"]
[TimeControl "40/6000+30:3000+30"]

1. d4 {[%emt 0:00:04]} d5 {[%emt 0:00:07]} 2. Nf3 {[%emt 0:00:07]} Nf6 {[%emt 0:00:10]} 3. c4 {[%emt 0:00:08]} e6 {[%emt 0:00:05]} 4. e3 {[%emt 0:00:06]} a6 {[%emt 0:00:22]} 5. b3 {[%emt 0:00:39]} c5 {[%emt 0:00:21]} 6. Nbd2 {[%emt 0:02:02]} cxd4 {[%emt 0:01:08]} 7. exd4 {[%emt 0:00:07]} Bb4 {[%emt 0:00:52]} 8. Bb2 {[%emt 0:05:49]} O-O {[%emt 0:02:23]} 9. a3 {[%emt 0:01:47]} Bxd2+ {[%emt 0:01:09]} 10. Qxd2 {[%emt 0:04:34]} dxc4 {[%emt 0:00:11]} 11. bxc4 {[%emt 0:05:02]} b5 {[%emt 0:00:14]} 12. c5 {[%emt 0:08:20]} Bb7 {[%emt 0:15:25]} 13. Be2 {[%emt 0:04:36]} Ne4 {[%emt 0:09:12]} 14. Qf4 {[%emt 0:04:13]} Qa5+ {[%emt 0:02:27]} 15. Kf1 {[%emt 0:00:23]} Nd7 {[%emt 0:01:35]} 16. h4 {[%emt 0:09:43]} e5 {[%emt 0:15:40]} 17. dxe5 {[%emt 0:09:32]} Ndxc5 {[%emt 0:01:33]} 18. Qe3 {[%emt 0:19:59]} Rfd8 {[%emt 0:23:36]} 19. Kg1 {[%emt 0:04:05]} Qa4 {[%emt 0:12:08]} 20. Nd4 {[%emt 0:03:49]} Qa5 {[%emt 0:05:41]} 21. Rd1 {[%emt 0:03:05]} Na4 {[%emt 0:01:02]} 22. Ba1 {[%emt 0:07:55]} Nac3 {[%emt 0:00:25]} 23. Rd3 {[%emt 0:01:08]} Nxe2+ {[%emt 0:08:36]} 24. Qxe2 {[%emt 0:00:07]} b4 {[%emt 0:00:02]} 25. Rhh3 {[%emt 0:01:48]} Rac8 {[%emt 0:01:20]} 26. Nb3 {[%emt 0:04:21]} Qb6 {[%emt 0:02:26]} 27. axb4 {[%emt 0:04:07]} Qxb4 {[%emt 0:00:34]} 28. Qd1 {[%emt 0:01:45]} Qb6 {[%emt 0:01:23]} 29. Bd4 {[%emt 0:00:50]} Qg6 {[%emt 0:00:16]} 30. h5 {[%emt 0:01:56]} Qg5 {[%emt 0:00:10]} 31. f3 {[%emt 0:00:39]} Rxd4 {[%emt 0:04:49]} 32. Rxd4 {[%emt 0:00:20]} Nc3 {[%emt 0:00:26]} 33. Qd2 {[%emt 0:01:28]} h6 {[%emt 0:00:32]} 34. f4 {[%emt 0:02:13]} Qg4 {[%emt 0:00:05]} 35. Re3 {[%emt 0:00:09]} Kh7 {[%emt 0:01:02]} 36. Qd3+ {[%emt 0:00:32]} g6 {[%emt 0:00:16]} 37. hxg6+ {[%emt 0:00:11]} Kg7 {[%emt 0:00:01]} 38. Qd2 {[%emt 0:00:42]} Qxg6 {[%emt 0:01:14]} 39. f5 {[%emt 0:00:50]} Qg5 {[%emt 0:00:30]} 40. Kh2 {[%emt 0:00:37]} Kh8 {[%emt 0:00:28]} 41. Rh3 {[%emt 0:50:38]} 1-0

[Event "2nd Bundesliga Nord 2023-24"]
[Site "Hamburg"]
[Date "2024.02.04"]
[Round "6.2"]
[White "Krause, Benedict"]
[Black "Peyrer, Konstantin"]
[Result "1-0"]
[ECO "C50"]
[WhiteElo "2402"]
[BlackElo "2439"]
[Annotator "RC"]
[PlyCount "55"]
[EventDate "2023.11.30"]
[EventType "team-tourn"]
[EventCountry "GER"]
[SourceTitle "playchess.com"]
[Source "ChessBase"]
[SourceQuality "1"]
[TimeControl "40/6000+30:3000+30"]

1. e4 {[%emt 0:00:07]} e5 {[%emt 0:00:00]} 2. Nf3 {[%emt 0:00:05]} Nc6 {[%emt 0:00:00]} 3. Bc4 {[%emt 0:00:09]} d6 {[%emt 0:02:12]} 4. a4 {[%emt 0:06:50]} f5 {[%emt 0:05:36]} 5. d3 {[%emt 0:02:45]} Qf6 {[%emt 0:03:21]} 6. Nc3 {[%emt 0:08:20]} Nge7 {[%emt 0:08:56]} 7. Nb5 {[%emt 0:02:57]} Kd7 {[%emt 0:23:14]} 8. d4 {[%emt 0:12:29]} a6 {[%emt 0:18:38]} 9. dxe5 {[%emt 0:00:09]} Nxe5 {[%emt 0:00:21]} 10. Nxe5+ {[%emt 0:00:05]} Qxe5 {[%emt 0:00:13]} 11. Nc3 {[%emt 0:15:04]} fxe4 {[%emt 0:01:17]} 12. O-O {[%emt 0:00:07]} Ke8 {[%emt 0:03:00]} 13. Re1 {[%emt 0:00:09]} Bf5 {[%emt 0:12:51]} 14. Be3 {[%emt 0:08:51]} Rd8 {[%emt 0:01:49]} 15. Bd4 {[%emt 0:00:16]} Qf4 {[%emt 0:03:17]} 16. Nd5 {[%emt 0:00:12]} Nxd5 {[%emt 0:00:06]} 17. Bxd5 {[%emt 0:03:16]} c6 {[%emt 0:01:56]} 18. g3 {[%emt 0:00:12]} Qg5 {[%emt 0:01:33]} 19. Bxe4 {[%emt 0:01:34]} Kd7 {[%emt 0:04:32]} 20. Qf3 {[%emt 0:00:27]} Be6 {[%emt 0:06:06]} 21. Bxc6+ {[%emt 0:00:07]} bxc6 {[%emt 0:00:03]} 22. Rxe6 {[%emt 0:00:30]} Kxe6 {[%emt 0:00:44]} 23. Re1+ {[%emt 0:00:11]} Kd7 {[%emt 0:00:19]} 24. Qf7+ {[%emt 0:03:40]} Kc8 {[%emt 0:00:45]} 25. Bb6 {[%emt 0:00:05]} Rd7 {[%emt 0:00:28]} 26. Re8+ {[%emt 0:00:04]} Kb7 {[%emt 0:00:17]} 27. Qxd7+ {[%emt 0:00:05]} Kxb6 {[%emt 0:00:14]} 28. b4 {[%emt 0:02:06]} 1-0

[Event "2nd Bundesliga Nord 2023-24"]
[Site "Hamburg"]
[Date "2024.02.04"]
[Round "6.3"]
[White "Souleidis, Georgios"]
[Black "Ertan, Can"]
[Result "1-0"]
[ECO "C50"]
[WhiteElo "2414"]
[BlackElo "2358"]
[Annotator "ChessBase"]
[PlyCount "109"]
[EventDate "2023.11.30"]
[EventType "team-tourn"]
[EventCountry "GER"]
[SourceTitle "playchess.com"]
[Source "ChessBase"]
[SourceQuality "1"]
[TimeControl "40/6000+30:3000+30"]

1. e4 {[%emt 0:00:30]} e5 {[%emt 0:01:39]} 2. Nf3 {[%emt 0:00:00]} Nc6 {[%emt 0:00:04]} 3. Bc4 {[%emt 0:00:20]} Bc5 {[%emt 0:00:05]} 4. d3 {[%emt 0:00:06]} Nf6 {[%emt 0:01:04]} 5. a4 {[%emt 0:00:28]} a5 {[%emt 0:03:32]} 6. Be3 {[%emt 0:00:21]} Bxe3 {[%emt 0:01:57]} 7. fxe3 {[%emt 0:00:04]} d5 {[%emt 0:00:20]} 8. exd5 {[%emt 0:01:46]} Nxd5 {[%emt 0:00:03]} 9. Qd2 {[%emt 0:13:08]} O-O {[%emt 0:07:58]} 10. Nc3 {[%emt 0:03:00]} Be6 {[%emt 0:04:01]} 11. O-O {[%emt 0:00:11]} h6 {[%emt 0:08:15]} 12. Rad1 {[%emt 0:10:12]} Qd6 {[%emt 0:09:26]} 13. Nxd5 {[%emt 0:26:15]} Bxd5 {[%emt 0:00:05]} 14. Qc3 {[%emt 0:00:18]} Rad8 {[%emt 0:05:50]} 15. Bb5 {[%emt 0:07:03]} Nb4 {[%emt 0:16:23]} 16. Nxe5 {[%emt 0:08:15]} Nxc2 {[%emt 0:01:03]} 17. Nxf7 {[%emt 0:05:57]} Qe6 {[%emt 0:00:40]} 18. Qxc2 {[%emt 0:12:05]} Qxe3+ {[%emt 0:04:25]} 19. Kh1 {[%emt 0:00:49]} Rxf7 {[%emt 0:01:57]} 20. Rxf7 {[%emt 0:00:15]} Bxf7 {[%emt 0:00:04]} 21. Qxc7 {[%emt 0:00:32]} Rd4 {[%emt 0:09:38]} 22. Qxb7 {[%emt 0:06:38]} Rf4 {[%emt 0:10:02]} 23. Bc4 {[%emt 0:00:10]} Bxc4 {[%emt 0:03:44]} 24. dxc4 {[%emt 0:00:03]} Qe2 {[%emt 0:00:08]} 25. Qd5+ {[%emt 0:01:34]} Kh7 {[%emt 0:00:47]} 26. h3 {[%emt 0:01:18]} Qxc4 {[%emt 0:01:11]} 27. Qxc4 {[%emt 0:03:22]} Rxc4 {[%emt 0:00:03]} 28. b3 {[%emt 0:00:05]} Rc3 {[%emt 0:00:16]} 29. Rd5 {[%emt 0:00:01]} Rxb3 {[%emt 0:00:20]} 30. Rxa5 {[%emt 0:00:02]} Ra3 {[%emt 0:00:09]} 31. h4 {[%emt 0:00:04]} Kg6 {[%emt 0:03:31]} 32. h5+ {[%emt 0:00:28]} Kf6 {[%emt 0:00:04]} 33. Kh2 {[%emt 0:00:15]} Ra2 {[%emt 0:00:39]} 34. Kh3 {[%emt 0:00:17]} Ke6 {[%emt 0:04:16]} 35. g3 {[%emt 0:01:19]} Ra3 {[%emt 0:00:14]} 36. Kg4 {[%emt 0:00:07]} Ra1 {[%emt 0:01:27]} 37. Ra6+ {[%emt 0:00:35]} Kf7 {[%emt 0:00:11]} 38. a5 {[%emt 0:01:39]} Ra3 {[%emt 0:01:19]} 39. Kf4 {[%emt 0:00:46]} Ra1 {[%emt 0:00:06]} 40. g4 {[%emt 0:03:02]} Rf1+ {[%emt 0:02:29]} 41. Ke4 {[%emt 0:52:58]} Ra1 {[%emt 0:50:19]} 42. Kd5 {[%emt 0:01:54]} Ra4 {[%emt 0:00:14]} 43. Kc6 {[%emt 0:00:00]} Rxg4 {[%emt 0:00:00]} 44. Rb6 {[%emt 0:00:00]} Rh4 {[%emt 0:00:00]} 45. a6 {[%emt 0:00:00]} Rxh5 {[%emt 0:00:00]} 46. a7 {[%emt 0:00:00]} Ra5 {[%emt 0:00:00]} 47. Kb7 {[%emt 0:00:00]} Rxa7+ {[%emt 0:00:00]} 48. Kxa7 {[%emt 0:00:00]} h5 {[%emt 0:00:00]} 49. Ka6 {[%emt 0:00:00]} h4 {[%emt 0:00:00]} 50. Kb5 {[%emt 0:00:00]} h3 {[%emt 0:00:00]} 51. Kc4 {[%emt 0:00:00]} h2 {[%emt 0:00:33]} 52. Rb1 {[%emt 0:00:00]} Kf6 {[%emt 0:00:11]} 53. Kd3 {[%emt 0:00:00]} Kg5 {[%emt 0:00:13]} 54. Ke3 {[%emt 0:00:00]} Kg4 {[%emt 0:00:10]} 55. Kf2 {[%emt 0:00:00]} 1-0

[Event "2nd Bundesliga Nord 2023-24"]
[Site "Hamburg"]
[Date "2024.02.04"]
[Round "6.4"]
[White "Sawatzki, Frank"]
[Black "Colpe, Malte"]
[Result "1-0"]
[ECO "B92"]
[WhiteElo "2352"]
[BlackElo "2383"]
[Annotator "RC"]
[PlyCount "103"]
[EventDate "2023.11.30"]
[EventType "team-tourn"]
[EventCountry "GER"]
[SourceTitle "playchess.com"]
[Source "ChessBase"]
[SourceQuality "1"]
[TimeControl "40/6000+30:3000+30"]

1. e4 {[%emt 0:00:44]} c5 {[%emt 0:00:00]} 2. Nf3 {[%emt 0:00:43]} d6 {[%emt 0:00:00]} 3. d4 {[%emt 0:00:05]} cxd4 {[%emt 0:00:00]} 4. Nxd4 {[%emt 0:00:12]} Nf6 {[%emt 0:00:00]} 5. Nc3 {[%emt 0:00:24]} a6 {[%emt 0:00:00]} 6. Be2 {[%emt 0:00:45]} e5 {[%emt 0:00:00]} 7. Nf3 {[%emt 0:02:14]} Be7 {[%emt 0:00:12]} 8. Bg5 {[%emt 0:02:43]} O-O {[%emt 0:05:11]} 9. Bxf6 {[%emt 0:00:09]} Bxf6 {[%emt 0:03:34]} 10. O-O {[%emt 0:05:46]} Be6 {[%emt 0:08:25]} 11. Nd5 {[%emt 0:05:22]} Nd7 {[%emt 0:00:50]} 12. Bc4 {[%emt 0:08:52]} Rc8 {[%emt 0:00:59]} 13. Qe2 {[%emt 0:10:25]} Nb6 {[%emt 0:00:19]} 14. Nxb6 {[%emt 0:00:07]} Qxb6 {[%emt 0:00:07]} 15. Bb3 {[%emt 0:12:41]} Rc5 {[%emt 0:02:02]} 16. Rfd1 {[%emt 0:05:09]} Be7 {[%emt 0:32:52]} 17. Bxe6 {[%emt 0:00:07]} fxe6 {[%emt 0:00:12]} 18. c3 {[%emt 0:16:34]} Rf4 {[%emt 0:03:50]} 19. g3 {[%emt 0:02:11]} Rf7 {[%emt 0:08:55]} 20. Ne1 {[%emt 0:03:12]} Rc8 {[%emt 0:05:26]} 21. Kg2 {[%emt 0:03:00]} Qc6 {[%emt 0:03:08]} 22. Nd3 {[%emt 0:02:21]} Rcf8 {[%emt 0:01:36]} 23. Rf1 {[%emt 0:03:00]} Qc4 {[%emt 0:02:59]} 24. f3 {[%emt 0:02:31]} Bd8 {[%emt 0:05:16]} 25. a3 {[%emt 0:05:16]} Bf6 {[%emt 0:01:17]} 26. Rae1 {[%emt 0:01:31]} Re8 {[%emt 0:04:38]} 27. f4 {[%emt 0:00:44]} exf4 {[%emt 0:00:21]} 28. Rxf4 {[%emt 0:08:49]} Ref8 {[%emt 0:00:48]} 29. Ref1 {[%emt 0:03:36]} Qb5 {[%emt 0:02:26]} 30. h4 {[%emt 0:02:14]} g6 {[%emt 0:06:27]} 31. R1f2 {[%emt 0:01:39]} Be5 {[%emt 0:00:05]} 32. Rxf7 {[%emt 0:00:05]} Rxf7 {[%emt 0:00:06]} 33. Rxf7 {[%emt 0:00:06]} Kxf7 {[%emt 0:00:19]} 34. c4 {[%emt 0:01:37]} Qa5 {[%emt 0:05:20]} 35. c5 {[%emt 0:00:29]} Ke7 {[%emt 0:01:00]} 36. Qe3 {[%emt 0:02:21]} Kd7 {[%emt 0:04:35]} 37. Nxe5+ {[%emt 0:00:03]} dxe5 {[%emt 0:00:19]} 38. Qd3+ {[%emt 0:01:12]} Kc8 {[%emt 0:00:25]} 39. Qd6 {[%emt 0:00:29]} Qc7 {[%emt 0:00:10]} 40. Qxe6+ {[%emt 0:00:19]} Kb8 {[%emt 0:00:28]} 41. Qd5 {[%emt 0:01:13]} Ka7 {[%emt 0:03:23]} 42. Kf3 {[%emt 0:09:31]} h5 {[%emt 0:03:41]} 43. b4 {[%emt 0:02:30]} Qe7 {[%emt 0:01:32]} 44. Ke2 {[%emt 0:04:53]} Qe8 {[%emt 0:07:10]} 45. Kd2 {[%emt 0:07:57]} Qe7 {[%emt 0:20:06]} 46. c6 {[%emt 0:07:36]} Qf6 {[%emt 0:10:45]} 47. c7 {[%emt 0:00:39]} Qf2+ {[%emt 0:01:27]} 48. Kc3 {[%emt 0:11:59]} Qe3+ {[%emt 0:01:36]} 49. Qd3 {[%emt 0:02:11]} Qc1+ {[%emt 0:00:41]} 50. Qc2 {[%emt 0:01:15]} Qxa3+ {[%emt 0:00:21]} 51. Kc4 {[%emt 0:03:19]} b5+ {[%emt 0:00:24]} 52. Kd5 1-0

[Event "2nd Bundesliga Nord 2023-24"]
[Site "Hamburg"]
[Date "2024.02.04"]
[Round "6.5"]
[White "Woelk, Tom-Frederic"]
[Black "Voigt, Martin"]
[Result "0-1"]
[ECO "D35"]
[WhiteElo "2393"]
[BlackElo "2316"]
[Annotator "ChessBase"]
[PlyCount "50"]
[EventDate "2023.11.30"]
[EventType "team-tourn"]
[EventCountry "GER"]
[SourceTitle "playchess.com"]
[Source "ChessBase"]
[SourceQuality "1"]
[TimeControl "40/6000+30:3000+30"]

1. d4 {[%emt 0:00:07]} d5 {[%emt 0:00:10]} 2. c4 {[%emt 0:00:19]} e6 {[%emt 0:01:32]} 3. Nc3 {[%emt 0:00:06]} Nf6 {[%emt 0:00:23]} 4. cxd5 {[%emt 0:00:07]} exd5 {[%emt 0:00:05]} 5. Bg5 {[%emt 0:00:08]} c6 {[%emt 0:01:04]} 6. e3 {[%emt 0:00:06]} Bd6 {[%emt 0:00:07]} 7. Bd3 {[%emt 0:00:11]} O-O {[%emt 0:00:33]} 8. Qc2 {[%emt 0:06:24]} h6 {[%emt 0:00:16]} 9. Bh4 {[%emt 0:00:04]} Re8 {[%emt 0:02:55]} 10. Nge2 {[%emt 0:04:24]} a5 {[%emt 0:01:33]} 11. h3 {[%emt 0:02:59]} Na6 {[%emt 0:00:10]} 12. a3 {[%emt 0:00:08]} Nc7 {[%emt 0:00:07]} 13. O-O {[%emt 0:02:00]} Ne6 {[%emt 0:00:29]} 14. f3 {[%emt 0:05:15]} Ng5 {[%emt 0:03:32]} 15. e4 {[%emt 0:21:47]} Nfxe4 {[%emt 0:00:07]} 16. fxe4 {[%emt 0:00:52]} Nxh3+ {[%emt 0:00:06]} 17. gxh3 {[%emt 0:00:12]} Qxh4 {[%emt 0:00:07]} 18. Rf2 {[%emt 0:25:58]} Bxh3 {[%emt 0:04:28]} 19. exd5 {[%emt 0:04:24]} cxd5 {[%emt 0:12:53]} 20. Bf5 {[%emt 0:04:32]} Re3 {[%emt 0:09:57]} 21. Rd1 {[%emt 0:17:38]} Bg3 {[%emt 0:03:33]} 22. Rdf1 {[%emt 0:03:55]} Bxf1 {[%emt 0:00:42]} 23. Nxg3 {[%emt 0:00:05]} Rxg3+ {[%emt 0:02:30]} 24. Kxf1 {[%emt 0:00:06]} Qh1+ {[%emt 0:00:10]} 25. Ke2 {[%emt 0:00:04]} Re8+ {[%emt 0:00:06]} 0-1

[Event "2nd Bundesliga Nord 2023-24"]
[Site "Hamburg"]
[Date "2024.02.04"]
[Round "6.6"]
[White "Mueller, Fabian"]
[Black "Garner, Isaac"]
[Result "1-0"]
[ECO "E15"]
[WhiteElo "2286"]
[BlackElo "2303"]
[Annotator "ChessBase"]
[PlyCount "127"]
[EventDate "2023.11.30"]
[EventType "team-tourn"]
[EventCountry "GER"]
[SourceTitle "playchess.com"]
[Source "ChessBase"]
[SourceQuality "1"]
[TimeControl "40/6000+30:3000+30"]

1. d4 {[%emt 0:00:15]} Nf6 {[%emt 0:00:00]} 2. c4 {[%emt 0:00:11]} e6 {[%emt 0:00:00]} 3. Nf3 {[%emt 0:00:32]} b6 {[%emt 0:00:20]} 4. g3 {[%emt 0:00:14]} Ba6 {[%emt 0:00:56]} 5. b3 {[%emt 0:00:13]} Bb4+ {[%emt 0:00:04]} 6. Bd2 {[%emt 0:00:03]} Be7 {[%emt 0:00:05]} 7. Bg2 {[%emt 0:00:54]} d5 {[%emt 0:00:36]} 8. Ne5 {[%emt 0:00:45]} c6 {[%emt 0:00:32]} 9. Bc3 {[%emt 0:00:10]} Nfd7 {[%emt 0:00:34]} 10. Nxd7 {[%emt 0:00:07]} Nxd7 {[%emt 0:00:06]} 11. Nd2 {[%emt 0:00:06]} O-O {[%emt 0:00:15]} 12. O-O {[%emt 0:00:11]} f5 {[%emt 0:03:25]} 13. Qc2 {[%emt 0:00:56]} Rc8 {[%emt 0:02:06]} 14. Rfd1 {[%emt 0:13:58]} Nf6 {[%emt 0:10:52]} 15. Bb2 {[%emt 0:19:56]} h5 {[%emt 0:01:42]} 16. Nf3 {[%emt 0:03:42]} Bd6 {[%emt 0:04:59]} 17. Ne5 {[%emt 0:04:21]} h4 {[%emt 0:14:07]} 18. Qd2 {[%emt 0:01:53]} hxg3 {[%emt 0:00:47]} 19. hxg3 {[%emt 0:02:44]} Ne4 {[%emt 0:06:34]} 20. Qe3 {[%emt 0:23:18]} b5 {[%emt 0:06:27]} 21. Rac1 {[%emt 0:01:49]} bxc4 {[%emt 0:00:22]} 22. bxc4 {[%emt 0:03:48]} Bxe5 {[%emt 0:00:22]} 23. dxe5 {[%emt 0:00:10]} Qb6 {[%emt 0:17:07]} 24. Ba3 {[%emt 0:02:26]} Qxe3 {[%emt 0:00:07]} 25. fxe3 {[%emt 0:04:25]} Rfe8 {[%emt 0:00:53]} 26. Bxe4 {[%emt 0:00:05]} fxe4 {[%emt 0:05:04]} 27. cxd5 {[%emt 0:00:19]} exd5 {[%emt 0:00:25]} 28. Bd6 {[%emt 0:03:14]} Bxe2 {[%emt 0:00:19]} 29. Rd2 {[%emt 0:00:34]} Bb5 {[%emt 0:03:52]} 30. Rf2 {[%emt 0:06:28]} Rcd8 {[%emt 0:10:53]} 31. a4 {[%emt 0:05:54]} Bc4 {[%emt 0:01:38]} 32. Rb1 {[%emt 0:00:17]} Rd7 {[%emt 0:01:41]} 33. Kg2 {[%emt 0:03:49]} Bd3 {[%emt 0:07:14]} 34. Rc1 {[%emt 0:00:06]} Bc4 {[%emt 0:00:08]} 35. Rb1 {[%emt 0:02:08]} Bd3 {[%emt 0:00:21]} 36. Rc1 {[%emt 0:04:11]} Rc8 {[%emt 0:04:32]} 37. g4 {[%emt 0:02:52]} Rf7 {[%emt 0:03:32]} 38. e6 {[%emt 0:01:29]} Rf6 {[%emt 0:01:25]} 39. Rxf6 {[%emt 0:00:04]} gxf6 {[%emt 0:00:38]} 40. Kg3 {[%emt 0:01:09]} Bc4 {[%emt 0:03:05]} 41. Kf4 {[%emt 0:51:14]} Bb3 {[%emt 0:05:54]} 42. Kf5 {[%emt 0:00:00]} d4 {[%emt 0:23:12]} 43. exd4 {[%emt 0:00:00]} Re8 {[%emt 0:00:34]} 44. e7 {[%emt 0:00:00]} Kf7 {[%emt 0:10:49]} 45. Kxe4 {[%emt 0:00:00]} Bxa4 {[%emt 0:01:08]} 46. Ra1 {[%emt 0:00:00]} Bc2+ {[%emt 0:00:06]} 47. Kf4 {[%emt 0:00:00]} Bb3 {[%emt 0:00:25]} 48. Rxa7 {[%emt 0:00:00]} Bd5 {[%emt 0:00:57]} 49. Ra3 {[%emt 0:00:00]} Rg8 {[%emt 0:02:36]} 50. Rc3 {[%emt 0:00:00]} Ke8 {[%emt 0:03:55]} 51. Re3 {[%emt 0:00:00]} Kf7 {[%emt 0:00:34]} 52. Bc5 {[%emt 0:00:00]} Be6 {[%emt 0:01:19]} 53. g5 {[%emt 0:00:00]} fxg5+ {[%emt 0:00:06]} 54. Ke5 {[%emt 0:00:00]} g4 {[%emt 0:00:41]} 55. Kd6 {[%emt 0:04:01]} Bf5 {[%emt 0:00:44]} 56. Re5 {[%emt 0:00:30]} Bc8 {[%emt 0:02:11]} 57. Kxc6 {[%emt 0:01:27]} g3 {[%emt 0:01:43]} 58. Re3 {[%emt 0:01:57]} Bf5 {[%emt 0:01:10]} 59. Rf3 {[%emt 0:00:05]} Ke6 {[%emt 0:00:33]} 60. d5+ {[%emt 0:00:06]} Ke5 {[%emt 0:01:34]} 61. Bd6+ {[%emt 0:00:25]} Ke4 {[%emt 0:00:10]} 62. Rf4+ {[%emt 0:00:16]} Kd3 {[%emt 0:00:15]} 63. Rxf5 {[%emt 0:00:08]} g2 {[%emt 0:00:12]} 64. Bh2 {[%emt 0:00:38]} 1-0

[Event "2nd Bundesliga Nord 2023-24"]
[Site "Hamburg"]
[Date "2024.02.04"]
[Round "6.7"]
[White "Hommer, Jeremy"]
[Black "Jahncke, Giso"]
[Result "0-1"]
[ECO "C50"]
[WhiteElo "2307"]
[BlackElo "2245"]
[Annotator "ChessBase"]
[PlyCount "76"]
[EventDate "2023.11.30"]
[EventType "team-tourn"]
[EventCountry "GER"]
[SourceTitle "playchess.com"]
[Source "ChessBase"]
[SourceQuality "1"]
[TimeControl "40/6000+30:3000+30"]

1. e4 {[%emt 0:00:03]} e5 {[%emt 0:00:14]} 2. Nf3 {[%emt 0:00:39]} Nc6 {[%emt 0:00:06]} 3. Bc4 {[%emt 0:00:39]} Nf6 {[%emt 0:00:08]} 4. d3 {[%emt 0:00:15]} Bc5 {[%emt 0:00:07]} 5. Nc3 {[%emt 0:02:06]} h6 {[%emt 0:01:50]} 6. h3 {[%emt 0:00:23]} a5 {[%emt 0:02:21]} 7. g4 {[%emt 0:07:17]} d6 {[%emt 0:08:04]} 8. g5 {[%emt 0:03:03]} hxg5 {[%emt 0:08:39]} 9. Nxg5 {[%emt 0:07:26]} Rf8 {[%emt 0:03:19]} 10. Be3 {[%emt 0:17:38]} Nd4 {[%emt 0:10:01]} 11. Ne2 {[%emt 0:14:43]} c6 {[%emt 0:19:39]} 12. a4 {[%emt 0:00:33]} Qe7 {[%emt 0:16:02]} 13. Bxd4 {[%emt 0:11:36]} exd4 {[%emt 0:01:54]} 14. Qd2 {[%emt 0:05:38]} Bd7 {[%emt 0:05:06]} 15. c3 {[%emt 0:10:58]} dxc3 {[%emt 0:02:18]} 16. bxc3 {[%emt 0:00:11]} d5 {[%emt 0:01:50]} 17. exd5 {[%emt 0:00:52]} cxd5 {[%emt 0:02:37]} 18. Bb3 {[%emt 0:03:55]} O-O-O {[%emt 0:01:35]} 19. d4 {[%emt 0:00:59]} Bd6 {[%emt 0:01:29]} 20. Qe3 {[%emt 0:03:00]} Rde8 {[%emt 0:03:08]} 21. Kd2 {[%emt 0:00:01]} Qd8 {[%emt 0:03:21]} 22. Qf3 {[%emt 0:01:17]} Ne4+ {[%emt 0:02:59]} 23. Nxe4 {[%emt 0:00:10]} dxe4 {[%emt 0:01:19]} 24. Qh5 {[%emt 0:03:00]} f5 {[%emt 0:06:45]} 25. Bd5 {[%emt 0:03:44]} f4 {[%emt 0:02:18]} 26. Rab1 {[%emt 0:08:32]} e3+ {[%emt 0:01:21]} 27. fxe3 {[%emt 0:00:01]} fxe3+ {[%emt 0:00:08]} 28. Ke1 {[%emt 0:01:26]} Rf5 {[%emt 0:01:38]} 29. Bxb7+ {[%emt 0:00:38]} Kc7 {[%emt 0:00:05]} 30. Qg4 {[%emt 0:03:40]} Rf1+ {[%emt 0:02:26]} 31. Rxf1 {[%emt 0:00:02]} Bxg4 {[%emt 0:00:05]} 32. hxg4 {[%emt 0:00:10]} Qh4+ {[%emt 0:00:19]} 33. Kd1 {[%emt 0:00:04]} Qh7 {[%emt 0:01:30]} 34. Rf5 {[%emt 0:02:09]} Rb8 {[%emt 0:01:43]} 35. Be4 {[%emt 0:00:38]} Rxb1+ {[%emt 0:00:21]} 36. Bxb1 {[%emt 0:00:01]} Qh1+ {[%emt 0:00:23]} 37. Kc2 {[%emt 0:00:01]} Qe1 {[%emt 0:00:29]} 38. Rf7+ {[%emt 0:00:32]} Kd8 {[%emt 0:00:32]} 0-1

[Event "2nd Bundesliga Nord 2023-24"]
[Site "Hamburg"]
[Date "2024.02.04"]
[Round "6.8"]
[White "Thieme, Daniel Otis"]
[Black "Lubbe, Melanie"]
[Result "0-1"]
[ECO "E62"]
[WhiteElo "2103"]
[BlackElo "2227"]
[Annotator "ChessBase"]
[PlyCount "62"]
[EventDate "2023.11.30"]
[EventType "team-tourn"]
[EventCountry "GER"]
[SourceTitle "playchess.com"]
[Source "ChessBase"]
[SourceQuality "1"]
[TimeControl "40/6000+30:3000+30"]

1. d4 {[%emt 0:00:05]} Nf6 {[%emt 0:00:00]} 2. c4 {[%emt 0:00:04]} g6 {[%emt 0:00:00]} 3. Nf3 {[%emt 0:00:05]} Bg7 {[%emt 0:00:00]} 4. g3 {[%emt 0:00:07]} d6 {[%emt 0:00:03]} 5. Bg2 {[%emt 0:00:06]} O-O {[%emt 0:00:07]} 6. O-O {[%emt 0:00:41]} c6 {[%emt 0:00:44]} 7. Nc3 {[%emt 0:03:10]} Qb6 {[%emt 0:03:11]} 8. b3 {[%emt 0:01:40]} Qa5 {[%emt 0:01:47]} 9. Bb2 {[%emt 0:00:08]} Qh5 {[%emt 0:01:35]} 10. Re1 {[%emt 0:05:16]} Bh3 {[%emt 0:01:04]} 11. Bh1 {[%emt 0:11:31]} e5 {[%emt 0:13:26]} 12. e4 {[%emt 0:23:18]} Bg4 {[%emt 0:06:11]} 13. d5 {[%emt 0:05:07]} Nfd7 {[%emt 0:02:06]} 14. Ba3 {[%emt 0:06:51]} f5 {[%emt 0:08:53]} 15. Re3 {[%emt 0:11:22]} Bh6 {[%emt 0:01:43]} 16. Rd3 {[%emt 0:01:31]} c5 {[%emt 0:13:46]} 17. Qe2 {[%emt 0:03:28]} Nf6 {[%emt 0:26:20]} 18. exf5 {[%emt 0:04:29]} gxf5 {[%emt 0:01:45]} 19. Nb5 {[%emt 0:06:09]} e4 {[%emt 0:01:58]} 20. Nc7 {[%emt 0:06:30]} Nbd7 {[%emt 0:08:01]} 21. Rc3 {[%emt 0:05:11]} Ne5 {[%emt 0:00:52]} 22. Nxa8 {[%emt 0:02:00]} Rxa8 {[%emt 0:03:54]} 23. Bb2 {[%emt 0:05:21]} Bxf3 {[%emt 0:00:28]} 24. Bxf3 {[%emt 0:03:21]} exf3 {[%emt 0:03:04]} 25. Qf1 {[%emt 0:00:24]} Ne4 {[%emt 0:00:23]} 26. Rc2 {[%emt 0:01:13]} Nd2 {[%emt 0:02:28]} 27. Rxd2 {[%emt 0:00:05]} Bxd2 {[%emt 0:00:51]} 28. Bxe5 {[%emt 0:00:14]} dxe5 {[%emt 0:00:16]} 29. Qd3 {[%emt 0:02:48]} e4 {[%emt 0:00:23]} 30. Qxd2 {[%emt 0:00:04]} Qh3 {[%emt 0:00:34]} 31. Qg5+ {[%emt 0:00:11]} Kf7 0-1